Cogmind - Beta 16.1 @@@ ROGUE MODE // 2026.02.12 @ 20:56:13 Player: FlyingLemon Result: Destroyed self with Grenade Launcher Performance ------------- Evolutions (0) 0 Regions Visited (2) 400 Robots Destroyed (5) 25 Value Destroyed (121) 121 Prototype IDs (2) 40 Alien Tech Used (0) 0 Bonus (0) 0 TOTAL SCORE: 586 Bonus ------- None Cogmind --------- Core Integrity 0/250 Matter 149/300 Energy 100/100 System Corruption 0% Temperature Warm (132) Movement Walking (120) Location -10/Mines Parts ------- > --- POWER (1) -------- (None) > --- PROPULSION (2) --- Light Treads Aluminum Leg > --- UTILITY (2) ------ Small Storage Unit Signal Interpreter > --- WEAPON (2) ------- (None) > --- INVENTORY (8) ---- Light Ion Engine Light Ion Engine Aluminum Leg Grenade Launcher Peak State ------------ > --- POWER ------------ Ion Engine > --- PROPULSION ------- Light Treads Wheel > --- UTILITY ---------- Small Storage Unit Signal Interpreter > --- WEAPON ----------- Small Laser Light Assault Rifle > --- INVENTORY -------- Light Ion Engine Light Treads Aluminum Leg Aluminum Leg Compact Wheel Medium Laser Light Assault Rifle Grenade Launcher [Rating: 7] Favorites ----------- Power Ion Engine Engine Ion Engine Propulsion Light Treads Treads Light Treads Leg Aluminum Leg Wheel Wheel Utility Small Storage Unit Storage Small Storage Unit Processor Signal Interpreter Weapon Light Assault Rifle Energy Gun Small Laser Ballistic Gun Light Assault Rifle Launcher Grenade Launcher Build | -11 -10 -10 ------- Run | Yrd Mat Min Slots Evolved . | . . . Power . | . . . Propulsion . | . . . Utility . | . . . Weapon . | . . . Parts Attached 12 | 7 2 3 Power 1 | 1 . . Engine 1 | 1 . . Core . | . . . Reactor . | . . . Propulsion 5 | 3 . 2 Treads 2 | 1 . 1 Leg 1 | . . 1 Wheel 2 | 2 . . Hover . | . . . Flight . | . . . Utility 2 | 1 1 . Device . | . . . Storage 1 | 1 . . Processor 1 | . 1 . Hackware . | . . . Protection . | . . . Artifact . | . . . Weapon 4 | 2 1 1 Energy Gun 1 | 1 . . Energy Cannon . | . . . Ballistic Gun 2 | 1 1 . Ballistic Cannon . | . . . Launcher 1 | . . 1 Special Weapon . | . . . Impact Weapon . | . . . Slashing Weapon . | . . . Piercing Weapon . | . . . Special Melee Weapon . | . . . Unidentified Prototypes . | . . . Parts Lost 6 | . . 6 Power 1 | . . 1 Propulsion 2 | . . 2 Utility . | . . . Weapon 3 | . . 3 Highest Loss Streak 6 | . . 6 To Critical Strikes . | . . . Average Backups 6 | 3 7 6 Power 1 | . 1 2 Propulsion 3 | 2 3 2 Utility . | . . . Weapon 1 | . 2 1 Tool/Special . | . . . Unused Backups 5 | . 1 4 Power 2 | . . 2 Propulsion 1 | . . 1 Utility . | . . . Weapon 2 | . 1 1 Tool/Special . | . . . Average Slot Usage (%) 94 | . 94 95 Engine 14 | . 14 14 Treads 14 | . 14 14 Wheel 13 | . 14 9 Storage 14 | . 14 14 Processor 10 | . 8 14 Energy Gun 6 | . 8 . Ballistic Gun 20 | . 19 25 Peak Build Rating 7 | 6 7 7 Average Rating 6 | 4 6 6 On Entrance 4 | . 6 7 Avg Prop Armor Cover (%) 14 | 14 14 14 Naked Turns . | . . . Heaviest Build 12 | 12 12 12 Greatest Support 20 | 16 10 20 Greatest Overweight (x) 1 | 1 1 1 Average Overweight (x) . | . 1 . Largest Inventory Capacity 8 | 8 8 8 Average Capacity 7 | 6 8 8 Most Carried 8 | 6 8 7 Average Carried 6 | 4 7 6 Final Capacity 8 | 8 8 8 Final Carried 7 | 6 7 4 Class Distribution -------------------- 100% | Mutant Dominant Class ---------------- Mutant | -10/Materials Mutant | -10/Mines Resources | -11 -10 -10 ----------- Run | Yrd Mat Min Matter Collected 223 | 181 42 . Remotely . | . . . Salvage Created 140 | . 42 98 Parts 12 | . 6 6 Haulers Intercepted . | . . . Recyclers Shooed . | . . . Parts Field Recycled . | . . . Retrieved Matter . | . . . Parts Self-Destructed . | . . . Prevented . | . . . Parts Restored . | . . . Kills | -11 -10 -10 ------- Run | Yrd Mat Min Combat Hostiles Destroyed 5 | . 3 2 Guns 5 | . 3 2 Classes Destroyed 2 | . 1 1 Swarmer 3 | . 3 . Grunt 2 | . . 2 Best Kill Streak 3 | . 3 2 Combat Bots Only 3 | . 3 2 Max Kills in Single Turn 1 | . 1 1 Gunslinging . | . . . Exploded . | . . . Melee . | . . . Uniques/NPCs Destroyed . | . . . Combat | -11 -10 -10 -------- Run | Yrd Mat Min Hostile Shots Fired 72 | . 13 59 Missed 9 | . 2 7 Hits 63 | . 11 52 Projectile 63 | . 11 52 Critical Strikes 2 | . . 2 Damage Taken 852 | . 86 766 Core 258 | . 14 244 Absorbed by Shields . | . . . Core Remaining (%) 100 | 100 . . Volleys Fired 30 | . 9 21 Largest 2 | . 2 2 Hottest 60 | . 60 40 Shots Fired 56 | . 18 38 Gun 52 | . 18 34 Cannon . | . . . Launcher 4 | . . 4 Special . | . . . Kinetic 44 | . 10 34 Thermal 8 | . 8 . Explosive 4 | . . 4 Electromagnetic . | . . . Robot Hit Streak 16 | . 5 16 Robot Miss Streak 3 | . 2 3 Penetration Max . | . . . Secondary Targets 1 | . . 1 Max Gunslinging Chain 1 | . . 1 Shots Hit Robots 39 | . 11 28 Core Hits 17 | . 5 12 Critical Kills . | . . . Critical Parts Destroyed 1 | . 1 . Critical Strikes 1 | . 1 . Destroy 1 | . 1 . Melee Attacks . | . . . Impact . | . . . Slashing . | . . . Piercing . | . . . Sneak Attacks . | . . . Combat Hostiles . | . . . Follow-up Attacks . | . . . Damage Inflicted 469 | . 94 375 Guns 302 | . 94 208 Cannons . | . . . Explosions 167 | . . 167 Melee . | . . . Ramming . | . . . Kinetic 258 | . 50 208 Thermal 44 | . 44 . Explosive 167 | . . 167 Electromagnetic . | . . . Impact . | . . . Slashing . | . . . Piercing . | . . . Highest Corruption . | . . . Average Corruption . | . . . Corruption Purged . | . . . Corruption Blocked . | . . . Overload Shots . | . . . Overflow Damage 17 | . . 17 Projectiles . | . . . Explosions 17 | . . 17 Melee . | . . . Knockbacks . | . . . Impact . | . . . Kinetic . | . . . Secondary . | . . . Self-Inflicted Damage 80 | . . 80 Shots 2 | . . 2 Rammed . | . . . Targets Rammed . | . . . Kicked . | . . . Crushed . | . . . Highest Temperature 147 | . 40 147 Average Temperature 69 | . 25 87 Received Heat Transfer 417 | . . 417 Siege Activations . | . . . Martial Activations . | . . . Shielding Activations . | . . . Robots Disrupted . | . . . Combat Hostiles . | . . . Robots Corrupted . | . . . Combat Hostiles . | . . . Parts Fried . | . . . Impact Corruptions . | . . . Robots Melted . | . . . Combat Hostiles . | . . . Parts Melted . | . . . Heat Transferred 100 | . 100 . Parts Sabotaged . | . . . Parts Stolen . | . . . Parts Stripped . | . . . Power Chain Reactions . | . . . Alert | -11 -10 -10 ------- Run | Yrd Mat Min Maximum Alert Level . | . . . Low Security (%) 100 | 100 100 100 Level 1 . | . . . Level 2 . | . . . Level 3 . | . . . Level 4 . | . . . Level 5 . | . . . High Security . | . . . Max Security . | . . . Peak Influence 85 | . 85 60 Initial . | . . . Average 20 | . 24 20 Influence Increases 200 | . 90 110 Destroy 0b10 Robot/C 100 | . 60 40 Destroy Leader 20 | . 10 10 Successful Hack 5 | . 5 . Disable Machine 15 | . . 15 Destroy Structure 15 | . . 15 Lose Combat Pursuer 45 | . 15 30 Influence Decreases 170 | . 90 80 Time Decay 110 | . 90 20 Lost Part 60 | . . 60 Squads Dispatched 1 | . 1 . Investigation 1 | . 1 . Extermination . | . . . Reinforcement . | . . . Assault . | . . . Garrison . | . . . Intercept . | . . . Searches Triggered . | . . . Construction Impeded . | . . . Haulers Reinforced . | . . . Active Scanning Responses . | . . . Cargo Convoy Interrupts . | . . . Stealth | -11 -10 -10 --------- Run | Yrd Mat Min Distress Signals 1 | . 1 . Communications Jammed . | . . . Distress Signals . | . . . Times Spotted 12 | . 6 6 Peak Tracking Total 5 | . 5 4 Tactical Retreats 2 | . 1 1 Traps | -11 -10 -10 ------- Run | Yrd Mat Min Traps Triggered . | . . . Indirectly . | . . . Trap Hack Attempts . | . . . Triggered . | . . . Disarmed . | . . . Reprogrammed . | . . . Reused . | . . . Traps Extracted . | . . . Installed . | . . . Triggered . | . . . Machines | -11 -10 -10 ---------- Run | Yrd Mat Min Machines Disabled 1 | . . 1 Max in Single Turn 1 | . . 1 Machines Repaired . | . . . Machines Dismantled . | . . . Machines Sabotaged . | . . . Overloaded Fab Kills . | . . . Hacking | -11 -10 -10 --------- Run | Yrd Mat Min Machines Accessed 2 | . 2 . Terminals 2 | . 2 . Fabricators . | . . . Repair Stations . | . . . Recycling Units . | . . . Scanalyzers . | . . . Garrison Access . | . . . Total Hacks 5 | . 5 . Successful 2 | . 2 . Failed 3 | . 3 . Catastrophic 1 | . 1 . Database Lockouts . | . . . Manual 4 | . 4 . Terminals 5 | . 5 . Fabricators . | . . . Repair Stations . | . . . Recycling Units . | . . . Scanalyzers . | . . . Garrison Access . | . . . Terminal Hacks 2 | . 2 . Prototype ID Bank 1 | . 1 . Alert Level 1 | . 1 . Fabricator Hacks . | . . . Repair Station Hacks . | . . . Recycling Unit Hacks . | . . . Scanalyzer . | . . . Garrison Access Hacks . | . . . Unauthorized Hacks . | . . . Terminals . | . . . Fabricators . | . . . Repair Stations . | . . . Recycling Units . | . . . Scanalyzers . | . . . Garrison Access . | . . . Data Cores Recovered . | . . . Used . | . . . Hacking Detections 2 | . 2 . Full Trace Events 1 | . 1 . Feedback Events . | . . . Feedback Blocked . | . . . Robot Schematics Acquired . | . . . Robots Built . | . . . Authchips . | . . . Time . | . . . Total Robot Build Rating . | . . . Part Schematics Acquired . | . . . Parts Built . | . . . Authchips . | . . . Time . | . . . Total Part Build Rating . | . . . Part Studies Acquired . | . . . Parts Repaired . | . . . Time . | . . . Parts Recycled . | . . . Recycled Matter . | . . . Retrieved Matter . | . . . Retrieved Components . | . . . Parts Scanalyzed . | . . . Part Schematics Acquired . | . . . Parts Damaged . | . . . Bothacking | -11 -10 -10 ------------ Run | Yrd Mat Min Used RIF Installer . | . . . Robots Hacked . | . . . Non-combat . | . . . Combat . | . . . Robot Hacks Applied . | . . . Relay Couplers Released . | . . . Fabnet Peak Effective % . | . . . Robots Rewired . | . . . Allies Hacked . | . . . Hacks Repelled . | . . . Allies | -11 -10 -10 -------- Run | Yrd Mat Min Total Allies . | . . . Largest Group . | . . . Highest-Rated Group . | . . . Highest-Rated Ally . | . . . Total Orders . | . . . Ally Attacks . | . . . Total Damage . | . . . Kills . | . . . Allies Corrupted . | . . . Allies Melted . | . . . Intel | -11 -10 -10 ------- Run | Yrd Mat Min Active Infowar (turns) . | . . . Robot Analysis Total . | . . . Derelict Logs Recovered . | . . . Drone Launches . | . . . Drone Recoveries . | . . . Exploration | -11 -10 -10 ------------- Run | Yrd Mat Min Turns Passed 484 | 74 320 90 Spaces Moved 347 | 63 246 38 Core 5 | 5 . . Treads 1 | . . 1 Legs . | . . . Wheels 341 | 58 246 37 Hover . | . . . Flight . | . . . Fastest Speed 50 | 50 95 95 Average Speed 94 | 91 95 96 Slowest Speed 160 | 100 95 160 Overloaded Moves . | . . . Propulsion Burnouts . | . . . Robots Hopped . | . . . Potential Cave-ins . | . . . Cave-ins Triggered . | . . . Exploration Rate (%) 16 | 3 35 11 Regions Visited 2 Branch Regions 1 Pre-discovered Areas . | . . . Known Exits Taken 1 | . 1 . Unknown Exits Taken 1 | 1 . . Scrap Searched . | . . . Spaces Dug . | . . . Terrain Destroyed 18 | . . 18 Melee . | . . . Projectile . | . . . AOE 18 | . . 18 Terrain Rammed . | . . . Walls Destroyed . | . . . Machines Disabled . | . . . Actions | -11 -10 -10 --------- Run | Yrd Mat Min Total 454 | 76 316 62 Wait 53 | . 53 . Move 345 | 62 245 38 Hop . | . . . Pick Up 11 | 7 4 . Fast Attach 6 | 5 1 . Attach 4 | 1 . 3 Detach . | . . . Swap 2 | 1 1 . Drop 3 | . 3 . Fire 30 | . 9 21 Melee . | . . . Ram . | . . . Kick . | . . . Crush . | . . . Escape Stasis . | . . . Rewire . | . . . Trap . | . . . Miscellaneous . | . . . Route ------- -11/Scrapyard -10/Materials -10/Mines History --------- Turn | Location | Event 14 | -11/Scrapyard | Discovered new exit (range 14) 75 | -11/Scrapyard | Entered Materials 128 | -10/Materials | Discovered new exit (range 15) 199 | -10/Materials | Identified exit to Mines 317 | -10/Materials | Build established: Mutant 395 | -10/Materials | Entered Mines 462 | -10/Mines | Core integrity fell below 50% 476 | -10/Mines | Core integrity fell below 20% 485 | -10/Mines | Destroyed self with Grenade Launcher Last Messages --------------- Critical hit (Burn: +37). G-47 Trooper destroyed. Switching to secondary target: G-34 Mercenary. Critical hit (Burn: +37). Wheel destroyed. Lgt. Treads destroyed. G-34 Mercenary destroyed. K-01 Serf collects debris. Lgt. Assault Rifle destroyed. [Achievement: There's More Where That Came From] K-01 Serf collects debris. R-06 Scavenger collects Particle Gun. R-06 Scavenger collects Aluminum Leg. Core Extractor disabled. U-05 Engineer lays Concrete. Grenade Launcher destroyed. Destroyed Grenade Launcher. Ion Engine destroyed. [Achievement: Overwhelming] Destroyed Ion Engine. Map ----- +----------------------------------------------------+ | ?????????????????????????????????????????????????? | | ?????????????????????????????????????????????????? | | ?????????????????????????????????????????????????? | | ?????????????????????????????????????????????????? | | ?????????????????????????????????????????????????? | | ?????????????????????????????????????????????????? | | ?????????????????????????????????????????????????? | | ?????????????????????????????????????????????????? | | ?????????????????????????????????????????????????? | | ?????????????????????????????????????????????????? | | ?????????????????????????????????????????????????? | | ?????????????????????????????????????????????????? | | ?????????????????????????????????????????????????? | | ????????????????? ???????????????????????????????? | | ???????????????? ???????????????????????????????? | | ????????????????? ??????????????????????????????? | | ?????????????????? ?????????????????????????????? | | ??????????????????? ????????????????????????????? | | ???????????????????? ####????#####??##???????????? | | ????????????????????? ???## ## #???????????? | | ?????????????????????? [ ???# #???????????? | | ??????????????????????#*=???# ##??????????? | | ??????????????????????# %##### ##?????????? | | ??????????????????????#% ##????????? | | ??????????????????????#= g #????????? | | ??????????????????????# @g r "" #????????? | | ??????????????????????## """ #???????? | | ?????????????????????? ####r## u""" #???????? | | ????????????????????? ???# ### ##???????? | | ???????????????????? ????# #?# # ##????????? | | ?????????????????? ?????# #?## ## #?????????? | | ?????????????????####??????# #??####? #?????????? | | ???????????????????????????# #??????? #?????????? | | ???????????????????????????# #???????? ## ??? | | ???????????????????????????# ##### ??? | | ???????????????????????????# ??? | | ???????????????????????????###### ??? | | ??????????????????????????????????? ??? | | ????????????????????????????????????? ???? | | ??????????????????????????????????????? ## ???? | | ?????????????????????????????????????????#???????? | | ?????????????????????????????????????????????????? | | ?????????????????????????????????????????????????? | | ?????????????????????????????????????????????????? | | ?????????????????????????????????????????????????? | | ?????????????????????????????????????????????????? | | ?????????????????????????????????????????????????? | | ?????????????????????????????????????????????????? | | ?????????????????????????????????????????????????? | | ?????????????????????????????????????????????????? | +----------------------------------------------------+ Best States ------------- Heat Dissipation 25 Energy Generation 10 Energy Capacity 250 Matter Stores 246 Matter Capacity 300 Sight Range 16 Terrain Scan Density 10 Evasion (%) 41 Recoil Reduction 1 Item Schematics ----------------- None Robot Schematics ------------------ None Fabricated ------------ Nothing Repaired ---------- Nothing Studied --------- None Alien Tech Used ----------------- None Achievements -------------- DATA ERROR: Steam Global Achievement% Organ Harvest Overwhelming There's More Where That Came From Challenges ------------ None Game ------ Seed TractorWardroneJoltstriker Manual? 0 Play Time 00:13:43 Cumulative 36.3 hours Start 2026.02.12 @ 20:39:04 End 2026.02.12 @ 20:56:13 Sessions 1 Manual Loads 0 Difficulty Rogue Special Mode None Game No. 48 Rogue 48 Adventurer 0 Explorer 0 Win Type - Total 0 Types 0/0/0/0/0/0/0/0/0/0 Lore% 21 Gallery% 34 Achievement% 18 Wizard Run 0 Options --------- Layout 1 ASCII 0 Keyboard 0 Movement Arrows Keybinds 0 Fullscreen 1 Font 32/SmallcapsGlow Map View 50x35 Zoom Use 0% Tactical HUD 0 Map Filters NONE Filters NONE Steam 1 RUN: 145caa6b-7851-4344-8067-9871c8fb8ba5